fUSD/lending_fUSD_20240919
["ID","MTS","AMOUNT","RATE_DAILY","PERIOD"]
[338500723,1726707040316,-1003.21,0.0001452,2]
[338500724,1726707040325,-500.0,0.0001452,2]
[338500725,1726707040335,-1130.26,0.0001452,2]
[338500726,1726707040344,-500.0,0.0001452,2]
[338500727,1726707040354,-500.0,0.0001452,2]
[338500728,1726707040363,-894.45,0.0001452,2]
[338500729,1726707040373,-1232.37,0.0001452,2]
[338500730,1726707040382,-751.57,0.0001452,2]
[338500731,1726707040392,-500.0,0.0001452,2]
[338500732,1726707040403,-500.0,0.0001452,2]
[338500733,1726707040417,-500.0,0.0001452,2]
[338500734,1726707040426,-2756.93,0.0001452,2]
[338500735,1726707040435,-2836.58,0.0001452,2]
[338500737,1726707040444,-2564.46,0.0001452,2]
[338500739,1726707040453,-2401.88,0.0001452,2]
[338500741,1726707040462,-1164.03,0.0001452,2]
[338500743,1726707040471,-500.0,0.0001452,2]
[338500745,1726707040479,-563.71,0.0001452,2]
[338500747,1726707040488,-641.86616464,0.0001452,2]
[338500749,1726707040497,-500.0,0.0001452,2]
[338500751,1726707040506,-500.0,0.0001452,2]
[338500753,1726707040514,-500.0,0.0001452,2]
[338500754,1726707040524,-1951.19,0.0001452,2]
[338500756,1726707040533,-500.0,0.0001452,2]
[338500758,1726707040543,-550.74,0.0001452,2]
[338500761,1726707040553,-1059.08,0.0001452,2]
[338500764,1726707040562,-503.3,0.0001452,2]
[338500767,1726707040571,-2711.96,0.0001452,2]
[338500769,1726707040581,-500.0,0.0001452,2]
[338500771,1726707040589,-1079.63,0.0001452,2]
[338500773,1726707040599,-542.55,0.0001452,2]
[338500775,1726707040608,-866.09,0.0001452,2]
[338500777,1726707040618,-3104.56,0.0001452,2]
[338500779,1726707040627,-500.0,0.0001452,2]
[338500781,1726707040637,-500.0,0.0001452,2]
[338500783,1726707040646,-500.0,0.0001452,3]
[338500785,1726707040658,-500.0,0.0001452,2]
[338500787,1726707040667,-500.0,0.0001452,2]
[338500789,1726707040676,-500.0,0.0001452,2]
[338500791,1726707040685,-500.0,0.0001452,2]
[338500793,1726707040695,-1087.66,0.0001452,2]
[338500794,1726707040704,-566.03,0.0001452,2]
[338500796,1726707040713,-500.0,0.0001452,2]
[338500798,1726707040722,-500.0,0.0001452,2]
[338500800,1726707040731,-500.0,0.0001452,2]
[338500802,1726707040741,-868.34,0.0001452,2]
[338500805,1726707040750,-151.03,0.0001452,2]
[338500806,1726707040760,-151.0,0.0001452,2]
[338500808,1726707040769,-524.06,0.0001452,2]
[338500810,1726707040778,-500.0,0.0001452,2]
[338500812,1726707040787,-1165.2,0.0001452,2]
[338500814,1726707040796,-500.0,0.0001452,2]
[338500816,1726707040805,-1863.53,0.0001452,2]
[338500818,1726707040815,-1158.0,0.0001452,2]
[338500820,1726707040824,-500.0,0.0001452,2]
[338500822,1726707040833,-2996.47,0.0001452,2]
[338500824,1726707040842,-500.0,0.0001452,2]
[338500826,1726707040853,-543.84,0.0001452,2]
[338500828,1726707040862,-500.0,0.0001452,2]
[338500830,1726707040871,-3627.28,0.0001452,2]
[338500831,1726707040880,-500.0,0.0001452,2]
[338500833,1726707040889,-500.0,0.0001452,2]
[338500835,1726707040898,-1923.25,0.0001452,2]
[338500837,1726707040909,-1633.0,0.0001452,2]
[338500839,1726707040919,-723.55,0.0001452,2]
[338500840,1726707040928,-247.18865398,0.0001452,2]
[338500842,1726707040937,-500.0,0.0001452,2]
[338500844,1726707040947,-811.92,0.0001452,2]
[338500846,1726707040955,-500.0,0.0001452,2]
[338500848,1726707040964,-6519.31,0.0001452,2]
[338500850,1726707040973,-500.0,0.0001452,2]
[338500852,1726707040983,-1050.32,0.0001452,2]
[338500854,1726707040991,-2432.94,0.0001452,2]
[338500856,1726707041001,-500.0,0.0001452,2]
[338500857,1726707041009,-1477.28,0.0001452,2]
[338500859,1726707041019,-151.0,0.0001452,2]
[338500861,1726707041028,-2317.47,0.0001452,2]
[338500863,1726707041037,-708.62,0.0001452,2]
[338500865,1726707041047,-500.0,0.0001452,2]
[338500867,1726707041056,-500.0,0.0001452,2]
[338500869,1726707041065,-1401.97,0.0001452,2]
[338500870,1726707041074,-1142.39,0.0001452,2]
[338500872,1726707041083,-500.0,0.0001452,2]
[338500874,1726707041092,-3242.82,0.0001452,2]
[338500876,1726707041101,-151.0,0.0001452,2]
[338500878,1726707041110,-672.7577964,0.0001452,2]
[338500966,1726707041955,-916.4222036,0.0001452,2]
[338500968,1726707041966,-4549.2,0.0001452,2]
[338500970,1726707041976,-1848.08,0.0001452,2]
[338500973,1726707041986,-500.0,0.0001452,2]
[338500975,1726707041995,-1148.79,0.0001452,2]
[338500977,1726707042005,-500.0,0.0001452,2]
[338500979,1726707042014,-500.0,0.0001452,2]
[338500981,1726707042024,-500.0,0.0001452,2]
[338500983,1726707042034,-500.0,0.0001452,2]
[338500985,1726707042043,-500.0,0.0001452,2]
[338500987,1726707042053,-44.22715959,0.0001452,2]
[338500989,1726707042065,-455.77284041,0.0001452,2]
[338500991,1726707042075,-931.03,0.0001452,2]
[338500993,1726707042085,-59.72525471,0.0001452,2]
[338500995,1726707042109,-312.84406266,0.0001452,2]
[338500996,1726707042121,-127.43068263,0.0001452,2]
[338500997,1726707042132,-2265.49,0.0001452,2]
[338500998,1726707042142,-30.19003492,0.0001452,2]
[338500999,1726707042157,-174.76087361,0.0001452,2]
[338501000,1726707042167,-305.42762445,0.0001452,2]
[338501001,1726707042179,-330.31237555,0.0001452,2]
[338501002,1726707042188,-500.0,0.0001452,2]
[338501003,1726707042198,-61.31520254,0.0001452,2]
[338501004,1726707042229,-1563.65479746,0.0001452,2]
[338501005,1726707042239,-500.0,0.0001452,2]
[338501006,1726707042249,-500.0,0.0001452,2]
[338501007,1726707042259,-546.03,0.0001452,2]
[338501008,1726707042269,-500.0,0.0001452,2]
[338501009,1726707042280,-1109.38021649,0.0001452,2]
[338501029,1726707044237,-154.63,0.0001275,2]
[338501030,1726707044246,-154.63,0.00012889,2]
[338501031,1726707044255,-154.63,0.0001293,2]
[338501032,1726707044264,-154.63,0.0001299,2]
[338501033,1726707044274,-154.63,0.0001299,2]
[338501034,1726707044283,-154.63,0.0001299,2]
[338501035,1726707044292,-154.63,0.0001299,2]
[338501036,1726707044302,-154.63,0.0001299,2]
[338501037,1726707044311,-2718.60978351,0.0001452,2]
[338501038,1726707044321,-500.0,0.0001452,2]
[338501039,1726707044330,-1557.3,0.0001452,2]
[338501040,1726707044340,-500.0,0.0001452,2]
[338501041,1726707044350,-500.0,0.0001452,2]
[338501042,1726707044360,-2926.44,0.0001452,2]
[338501043,1726707044369,-2709.74,0.0001452,2]
[338501044,1726707044378,-500.0,0.0001452,2]
[338501045,1726707044387,-500.0,0.0001452,2]
[338501046,1726707044397,-500.0,0.0001452,2]
[338501047,1726707044409,-500.0,0.0001452,2]
[338501048,1726707044418,-627.5,0.0001452,2]
[338501049,1726707044428,-3055.07,0.0001452,2]
[338501050,1726707044437,-500.0,0.0001452,2]
[338501051,1726707044447,-500.0,0.0001452,2]
[338501052,1726707044456,-500.0,0.0001452,2]
[338501053,1726707044466,-1608.62,0.0001452,2]
[338501054,1726707044476,-500.0,0.0001452,2]
[338501055,1726707044485,-500.0,0.0001452,2]
[338501056,1726707044494,-3398.23,0.0001452,2]
[338501057,1726707044504,-2097.66,0.0001452,2]
[338501058,1726707044514,-3933.73,0.0001452,2]
[338501059,1726707044523,-4242.87,0.0001452,2]
[338501060,1726707044533,-500.0,0.0001452,2]
[338501061,1726707044543,-500.0,0.0001452,2]
[338501062,1726707044552,-1117.7,0.0001452,2]
[338501063,1726707044561,-500.0,0.0001452,2]
[338501064,1726707044570,-500.0,0.0001452,2]
[338501065,1726707044580,-500.0,0.0001452,2]
[338501066,1726707044590,-519.03,0.0001452,2]
[338501067,1726707044599,-1485.77,0.0001452,2]
[338501068,1726707044608,-500.0,0.0001452,2]
[338501069,1726707044618,-1954.31,0.0001452,2]
[338501070,1726707044627,-500.0,0.0001452,2]
[338501071,1726707044637,-2960.21,0.0001452,2]
[338501072,1726707044646,-500.0,0.0001452,2]
[338501073,1726707044659,-765.29,0.0001452,2]
[338501074,1726707044668,-500.0,0.0001452,2]
[338501075,1726707044677,-500.0,0.0001452,2]
[338501076,1726707044687,-12649.04973565,0.0001452,2]
[338501077,1726707044701,-12513.39026435,0.0001452,2]
[338501078,1726707044712,-975.42,0.0001452,2]
[338501079,1726707044721,-4283.1,0.0001452,2]
[338501080,1726707044730,-500.0,0.0001452,2]
[338501081,1726707044740,-1149.16,0.0001452,2]
[338501082,1726707044750,-2040.44,0.0001452,2]
[338501083,1726707044760,-500.0,0.0001452,2]
[338501084,1726707044769,-1828.63,0.0001452,2]
[338501085,1726707044779,-500.0,0.0001452,2]
[338501086,1726707044789,-790.24,0.0001452,2]
[338501087,1726707044798,-4134.07,0.0001452,2]
[338501088,1726707044808,-500.0,0.0001452,2]
[338501089,1726707044818,-2363.11,0.0001452,2]
[338501090,1726707044827,-500.0,0.0001452,2]
[338501091,1726707044838,-500.0,0.0001452,2]
[338501092,1726707044848,-500.0,0.0001452,2]
[338501093,1726707044858,-500.0,0.0001452,2]
[338501094,1726707044868,-500.0,0.0001452,2]
[338501095,1726707044878,-603.28,0.0001452,2]
[338501096,1726707044888,-500.0,0.0001452,2]
[338501097,1726707044898,-1741.84,0.0001452,2]
[338501098,1726707044909,-2061.68,0.0001452,2]
[338501099,1726707044919,-500.0,0.0001452,2]
[338501100,1726707044928,-2035.72,0.0001452,2]
[338501101,1726707044938,-553.62,0.0001452,2]
[338501102,1726707044947,-500.0,0.0001452,2]
[338501103,1726707044956,-500.0,0.0001452,2]
[338501104,1726707044966,-2557.03,0.0001452,2]
[338501105,1726707044975,-1836.13,0.0001452,2]
[338501106,1726707044985,-1025.9,0.0001452,2]
[338501107,1726707044994,-573.67,0.0001452,2]
[338501108,1726707045004,-500.0,0.0001452,2]
[338501109,1726707045013,-1067.14,0.0001452,2]
[338501110,1726707045023,-2135.49,0.0001452,2]
[338501111,1726707045033,-594.59753412,0.0001452,2]
[338501112,1726707045043,-500.0,0.0001452,2]
[338501113,1726707045052,-1209.17,0.0001452,2]
[338501114,1726707045062,-555.84,0.0001452,2]
[338501115,1726707045072,-500.0,0.0001452,2]
[338501116,1726707045082,-1169.23,0.0001452,2]
[338501117,1726707045091,-1290.53,0.0001452,2]
[338501118,1726707045101,-500.0,0.0001452,2]
[338501119,1726707045110,-500.0,0.0001452,2]
[338501120,1726707045120,-5678.0,0.0001452,2]
[338501121,1726707045129,-2725.72,0.0001452,2]
[338501122,1726707045139,-2029.32,0.0001452,2]
[338501123,1726707045149,-500.0,0.0001452,2]
[338501124,1726707045162,-500.0,0.0001452,2]
[338501125,1726707045173,-500.0,0.0001452,2]
[338501126,1726707045183,-500.0,0.0001452,2]
[338501127,1726707045193,-646.13,0.0001452,2]
[338501128,1726707045202,-5517.9,0.0001452,2]
[338501129,1726707045212,-500.0,0.0001452,2]
[338501130,1726707045221,-568.91,0.0001452,2]
[338501131,1726707045230,-1546.8,0.0001452,2]
[338501132,1726707045240,-1406.49,0.0001452,2]
[338501133,1726707045250,-1420.44,0.0001452,2]
[338501134,1726707045259,-576.89,0.0001452,2]
[338501135,1726707045269,-530.62,0.0001452,2]
[338501136,1726707045279,-3695.53,0.0001452,2]
[338501137,1726707045289,-500.0,0.0001452,2]
[338501138,1726707045298,-500.0,0.0001452,2]
[338501139,1726707045308,-564.11,0.0001452,2]
[338501140,1726707045317,-500.0,0.0001452,2]
[338501141,1726707045327,-3957.83,0.0001452,2]
[338501142,1726707045336,-500.0,0.0001452,2]
[338501143,1726707045346,-2544.16,0.0001452,2]
[338501144,1726707045356,-500.0,0.0001452,2]
[338501145,1726707045365,-500.0,0.0001452,2]
[338501146,1726707045375,-1461.03,0.0001452,2]
[338501147,1726707045384,-1043.56,0.0001452,2]
[338501148,1726707045394,-1216.88,0.0001452,2]
[338501149,1726707045406,-1303.95,0.0001452,2]
[338501150,1726707045415,-500.0,0.0001452,2]
[338501151,1726707045425,-500.0,0.0001452,2]
[338501152,1726707045435,-1189.54,0.0001452,2]
[338501153,1726707045444,-622.37,0.0001452,2]
[338501154,1726707045454,-500.0,0.0001452,2]
[338501155,1726707045463,-815.42,0.0001452,2]
[338501156,1726707045473,-2669.18,0.0001452,2]
[338501157,1726707045483,-1876.34,0.0001452,2]
[338501158,1726707045493,-2731.88,0.0001452,2]
[338501159,1726707045502,-1156.39,0.0001452,2]
[338501160,1726707045512,-500.0,0.0001452,2]
[338501161,1726707045521,-500.0,0.0001452,2]
[338501162,1726707045531,-500.0,0.0001452,2]
[338501163,1726707045540,-500.0,0.0001452,2]
[338501164,1726707045550,-2806.0,0.0001452,2]
[338501165,1726707045560,-500.0,0.0001452,2]
[338501166,1726707045570,-2308.72,0.0001452,2]
[338501167,1726707045579,-918.51,0.0001452,2]
[338501168,1726707045589,-500.0,0.0001452,2]
[338501169,1726707045598,-2664.67,0.0001452,2]
[338501170,1726707045608,-500.0,0.0001452,2]
[338501171,1726707045617,-500.0,0.0001452,2]
[338501172,1726707045627,-500.0,0.0001452,2]
[338501173,1726707045636,-500.0,0.0001452,2]
[338501174,1726707045646,-865.26,0.0001452,2]
[338501175,1726707045656,-1997.74,0.0001452,2]
[338501176,1726707045665,-991.44,0.0001452,2]
[338501177,1726707045675,-3525.22,0.0001452,2]
[338501178,1726707045684,-3604.36,0.0001452,2]
[338501179,1726707045693,-500.0,0.0001452,2]
[338501180,1726707045703,-500.0,0.0001452,2]
[338501181,1726707045712,-1370.57,0.0001452,2]
[338501182,1726707045722,-1051.62,0.0001452,2]
[338501183,1726707045731,-500.0,0.0001452,2]
[338501184,1726707045740,-2803.3,0.0001452,2]
[338501185,1726707045750,-6490.99,0.0001452,2]
[338501186,1726707045759,-2668.16,0.0001452,2]
[338501187,1726707045769,-590.11,0.0001452,2]
[338501188,1726707045778,-1512.85,0.0001452,2]
[338501189,1726707045788,-850.39,0.0001452,2]
[338501190,1726707045797,-1183.27,0.0001452,2]
[338501191,1726707045806,-500.0,0.0001452,2]
[338501192,1726707045815,-500.0,0.0001452,2]
[338501193,1726707045824,-5923.39,0.0001452,2]
[338501194,1726707045834,-500.0,0.0001452,2]
[338501195,1726707045843,-301.45207248,0.0001452,2]
[338501196,1726707045852,-500.0,0.0001452,2]
[338501197,1726707045862,-151.0,0.0001452,2]
[338501198,1726707045871,-500.0,0.0001452,2]
[338501199,1726707045880,-6460.34,0.0001452,2]
[338501200,1726707045890,-500.0,0.0001452,2]
[338501201,1726707045899,-3958.4,0.0001452,2]
[338501202,1726707045909,-2238.61,0.0001452,2]
[338501203,1726707045920,-2645.92,0.0001452,2]
[338501204,1726707045929,-637.31,0.0001452,2]
[338501205,1726707045939,-4334.52,0.0001452,2]
[338501206,1726707045948,-1220.51,0.0001452,2]
[338501207,1726707045957,-1227.11,0.0001452,2]
[338501208,1726707045966,-1890.76,0.0001452,2]
[338501209,1726707045975,-2525.27,0.0001452,2]
[338501210,1726707045985,-500.0,0.0001452,2]
[338501211,1726707045994,-1478.08,0.0001452,2]
[338501212,1726707046004,-605.26989875,0.0001452,2]
[338501213,1726707046014,-533.28,0.0001452,2]
[338501214,1726707046024,-1902.63,0.0001452,2]
[338501215,1726707046034,-535.86,0.0001452,2]
[338501216,1726707046044,-1482.61,0.0001452,2]
[338501217,1726707046053,-500.0,0.0001452,2]
[338501218,1726707046063,-2938.03,0.0001452,2]
[338501219,1726707046072,-3559.96,0.0001452,2]
[338501220,1726707046082,-500.0,0.0001452,2]
[338501221,1726707046092,-967.6,0.0001452,2]
[338501222,1726707046102,-500.0,0.0001452,2]
[338501223,1726707046111,-903.17,0.0001452,2]
[338501224,1726707046120,-1883.17,0.0001452,2]
[338501225,1726707046129,-150.81802352,0.0001452,2]
[338501226,1726707046139,-640.42,0.0001452,2]
[338501227,1726707046148,-9191.59,0.0001452,2]
[338501228,1726707046160,-500.0,0.0001452,2]
[338501229,1726707046170,-500.0,0.0001452,2]
[338501230,1726707046179,-3269.4,0.0001452,2]
[338501231,1726707046189,-500.0,0.0001452,2]
[338501232,1726707046198,-500.0,0.0001452,2]
[338501233,1726707046208,-500.0,0.0001452,2]
[338501234,1726707046217,-536.05,0.0001452,2]
[338501235,1726707046227,-500.0,0.0001452,2]
[338501236,1726707046236,-500.0,0.0001452,2]
[338501237,1726707046245,-2317.75,0.0001452,2]
[338501238,1726707046255,-589.84,0.0001452,2]
[338501239,1726707046265,-1726.81,0.0001452,2]
[338501240,1726707046275,-1698.09,0.0001452,2]
[338501241,1726707046284,-500.0,0.0001452,2]
[338501242,1726707046293,-500.0,0.0001452,2]
[338501243,1726707046302,-4791.78,0.0001452,2]
[338501244,1726707046312,-3586.26,0.0001452,2]
[338501245,1726707046321,-1022.33,0.0001452,2]
[338501246,1726707046330,-3705.94,0.0001452,2]
[338501247,1726707046339,-819.02,0.0001452,2]
[338501248,1726707046349,-2542.33,0.0001452,2]
[338501249,1726707046358,-500.0,0.0001452,2]
[338501250,1726707046367,-4287.08,0.0001452,2]
[338501251,1726707046377,-1996.1,0.0001452,2]
[338501252,1726707046386,-3573.9,0.0001452,2]
[338501253,1726707046396,-500.0,0.0001452,2]
[338501254,1726707046406,-2597.51,0.0001452,2]
[338501255,1726707046418,-500.0,0.0001452,2]
[338501256,1726707046428,-5961.03,0.0001452,2]
[338501257,1726707046438,-692.76,0.0001452,2]
[338501258,1726707046447,-729.06,0.0001452,2]
[338501259,1726707046456,-881.9,0.0001452,2]
[338501260,1726707046467,-2547.72,0.0001452,2]
[338501261,1726707046476,-907.17,0.0001452,2]
[338501262,1726707046485,-151.0,0.0001452,2]
[338501263,1726707046495,-175.07052722,0.0001452,2]
[338501264,1726707046504,-500.0,0.0001452,2]
[338501265,1726707046513,-2533.24,0.0001452,2]
[338501266,1726707046523,-5375.9,0.0001452,2]
[338501267,1726707046532,-1198.4,0.0001452,2]
[338501268,1726707046542,-500.0,0.0001452,2]
[338501269,1726707046551,-937.64,0.0001452,2]
[338501270,1726707046560,-552.49,0.0001452,2]
[338501271,1726707046570,-500.0,0.0001452,2]
[338501272,1726707046580,-2539.5,0.0001452,2]
[338501273,1726707046589,-500.0,0.0001452,30]
[338501274,1726707046598,-3347.55,0.0001452,2]
[338501275,1726707046607,-500.0,0.0001452,2]
[338501276,1726707046617,-500.0,0.0001452,2]
[338501277,1726707046626,-594.64,0.0001452,2]
[338501278,1726707046636,-500.0,0.0001452,2]
[338501279,1726707046646,-671.2,0.0001452,2]
[338501280,1726707046655,-5168.88,0.0001452,2]
[338501281,1726707046667,-500.0,0.0001452,2]
[338501282,1726707046677,-500.0,0.0001452,2]
[338501283,1726707046687,-500.0,0.0001452,2]
[338501284,1726707046696,-550.66,0.0001452,2]
[338501285,1726707046706,-763.21,0.0001452,2]
[338501286,1726707046716,-500.0,0.0001452,2]
[338501287,1726707046726,-3659.03,0.0001452,2]
[338501288,1726707046736,-198.488469,0.0001452,2]
[338501289,1726707046746,-10360.53,0.0001452,2]
[338501290,1726707046756,-4090.22,0.0001452,2]
[338501291,1726707046767,-3342.52,0.0001452,2]
[338501292,1726707046777,-500.0,0.0001452,2]
[338501293,1726707046788,-1307.05,0.0001452,2]
[338501294,1726707046798,-1999.69,0.0001452,2]
[338501295,1726707046809,-500.0,0.0001452,2]
[338501296,1726707046819,-3892.4,0.0001452,2]
[338501297,1726707046828,-500.0,0.0001452,2]
[338501298,1726707046838,-1919.27,0.0001452,2]
[338501299,1726707046847,-1183.3,0.0001452,2]
[338501300,1726707046856,-500.0,0.0001452,2]
[338501301,1726707046866,-500.0,0.0001452,2]
[338501302,1726707046875,-1807.54,0.0001452,2]
[338501303,1726707046885,-500.0,0.0001452,2]
[338501304,1726707046894,-4767.8,0.0001452,2]
[338501305,1726707046903,-198.488469,0.0001452,2]
[338501306,1726707046915,-500.0,0.0001452,2]
[338501307,1726707046924,-788.62,0.0001452,2]
[338501308,1726707046933,-581.49976948,0.0001452,2]
[338501309,1726707046942,-500.0,0.0001452,2]
[338501310,1726707046951,-500.0,0.0001452,2]
[338501311,1726707046960,-1012.48,0.0001452,2]
[338501312,1726707046970,-500.0,0.0001452,2]
[338501313,1726707046979,-517.85,0.0001452,2]
[338501314,1726707046989,-4474.6,0.0001452,2]
[338501315,1726707046998,-5513.85,0.0001452,2]
[338501316,1726707047007,-2753.83,0.0001452,2]
[338501317,1726707047016,-686.18,0.0001452,2]
[338501318,1726707047025,-1798.2,0.0001452,2]
[338501319,1726707047035,-1009.57,0.0001452,2]
[338501320,1726707047044,-2326.93,0.0001452,2]
[338501321,1726707047053,-13344.52,0.0001452,2]
[338501322,1726707047062,-856.63,0.0001452,2]
[338501323,1726707047072,-1399.26,0.0001452,2]
[338501324,1726707047081,-500.0,0.0001452,2]
[338501325,1726707047090,-3210.94,0.0001452,2]
[338501326,1726707047100,-1301.54,0.0001452,2]
[338501327,1726707047109,-500.0,0.0001452,2]
[338501328,1726707047119,-500.0,0.0001452,2]
[338501329,1726707047128,-500.0,0.0001452,2]
[338501330,1726707047138,-1057.61,0.0001452,2]
[338501331,1726707047148,-1210.64,0.0001452,2]
[338501332,1726707047161,-719.36,0.0001452,2]
[338501333,1726707047170,-1091.3,0.0001452,2]
[338501334,1726707047180,-8176.45,0.0001452,2]
[338501335,1726707047417,-500.0,0.0001452,2]
[338501336,1726707047458,-2649.9,0.0001452,2]
[338501337,1726707047469,-1115.08,0.0001452,2]
[338501338,1726707047479,-500.0,0.0001452,2]
[338501339,1726707047488,-1467.28,0.0001452,2]
[338501340,1726707047498,-500.0,0.0001452,2]
[338501341,1726707047508,-1089.78,0.0001452,2]
[338501342,1726707047518,-8740.47,0.0001452,2]
[338501343,1726707047528,-3467.26,0.0001452,2]
[338501344,1726707047537,-6354.09,0.0001452,2]
[338501345,1726707047547,-500.0,0.0001452,2]
[338501346,1726707047557,-500.0,0.0001452,2]
[338501347,1726707047566,-6396.45,0.0001452,2]
[338501348,1726707047577,-500.0,0.0001452,2]
[338501349,1726707047587,-500.0,0.0001452,2]
[338501350,1726707047596,-622.15,0.0001452,2]
[338501351,1726707047606,-749.96,0.0001452,2]
[338501352,1726707047615,-1160.81,0.0001452,2]
[338501353,1726707047625,-500.0,0.0001452,2]
[338501354,1726707047635,-6281.68,0.0001452,2]
[338501355,1726707047645,-725.41,0.0001452,2]
[338501356,1726707047654,-689.99,0.0001452,2]
[338501357,1726707047668,-500.0,0.0001452,2]
[338501358,1726707047679,-16713.9,0.0001452,2]
[338501359,1726707047689,-500.0,0.0001452,2]
[338501360,1726707047698,-3538.32,0.0001452,2]
[338501361,1726707047707,-2012.0,0.0001452,2]
[338501362,1726707047717,-805.23,0.0001452,2]
[338501363,1726707047727,-500.0,0.0001452,2]
[338501364,1726707047737,-2135.03,0.0001452,2]
[338501365,1726707047747,-4122.17,0.0001452,2]
[338501366,1726707047757,-500.0,0.0001452,2]
[338501367,1726707047767,-500.0,0.0001452,2]
[338501368,1726707047777,-500.0,0.0001452,2]
[338501369,1726707047787,-3309.44,0.0001452,2]
[338501370,1726707047796,-500.0,0.0001452,2]
[338501371,1726707047806,-500.0,0.0001452,2]
[338501372,1726707047816,-189.48128963,0.0001452,2]
[338501373,1726707047826,-1085.24,0.0001452,2]
[338501374,1726707047836,-5275.43,0.0001452,2]
[338501375,1726707047845,-3271.0,0.0001452,2]
[338501376,1726707047855,-14107.01,0.0001452,2]
[338501377,1726707047866,-907.72,0.0001452,2]
[338501378,1726707047875,-565.57,0.0001452,2]
[338501379,1726707047885,-2039.0,0.0001452,2]
[338501380,1726707047894,-500.0,0.0001452,2]
[338501381,1726707047904,-1780.68,0.0001452,2]
[338501382,1726707047921,-4138.92,0.0001452,2]
[338501383,1726707047930,-620.65,0.0001452,2]
[338501384,1726707047939,-500.0,0.0001452,2]
[338501385,1726707047949,-500.0,0.0001452,2]
[338501386,1726707047959,-4099.68,0.0001452,2]
[338501387,1726707047968,-1269.99,0.0001452,2]
[338501388,1726707047978,-1858.64,0.0001452,2]
[338501389,1726707047987,-500.0,0.0001452,2]
[338501390,1726707047997,-1103.94,0.0001452,2]
[338501391,1726707048007,-9984.31,0.0001452,2]
[338501392,1726707048016,-500.0,0.0001452,2]
[338501393,1726707048025,-1923.32,0.0001452,2]
[338501394,1726707048035,-28774.79,0.0001452,2]
[338501395,1726707048044,-1040.94,0.0001452,2]
[338501396,1726707048054,-500.0,0.0001452,2]
[338501397,1726707048064,-500.0,0.0001452,2]
[338501398,1726707048074,-707.7946268,0.0001452,2]
[338501399,1726707048095,-30.2153732,0.0001452,2]
[338501400,1726707048105,-500.0,0.0001452,2]
[338501401,1726707048115,-500.0,0.0001452,2]
[338501402,1726707048125,-3345.18,0.0001452,2]
[338501403,1726707048135,-1988.49,0.0001452,2]
[338501404,1726707048144,-500.0,0.0001452,2]
[338501405,1726707048159,-500.0,0.0001452,2]
[338501406,1726707048169,-500.0,0.0001452,2]
[338501407,1726707048178,-500.0,0.0001452,2]
[338501408,1726707048188,-2169.77,0.0001452,2]
[338501409,1726707048198,-500.0,0.0001452,2]
[338501410,1726707048207,-524.09434575,0.0001452,2]
[338501411,1726707048232,-1667.62565425,0.0001452,2]
[338501412,1726707048244,-695.02,0.0001452,2]
[338501413,1726707048253,-4540.54116238,0.0001452,2]